bitfinex/quotes_ETHUSD_20241004
["timestamp","ask_amount","ask_price","bid_price","bid_amount"]
[1728003670391,8.52572,2345.9,2345.5,0.7503]
[1728003672353,4.26286,2345.9,2345.5,0.7503]
[1728003672552,4.26314,2345.7,2345.5,0.7503]
[1728003674695,4.26314,2345.7,2345.2,0.7503]
[1728003674696,0.7804,2345.6,2345.2,0.7503]
[1728003675052,4.26413,2345.2,2345.0,0.7503]
[1728003675257,4.26375,2345.4,2345.0,0.7503]
[1728003675458,4.26386,2345.3,2345.0,0.7503]
[1728003676593,4.26375,2345.4,2345.0,0.7503]
[1728003676764,4.26351,2345.5,2345.0,0.7503]
[1728003677369,4.26341,2345.6,2345.0,0.7503]
[1728003677689,4.26366,2345.4,2345.0,0.7503]
[1728003678255,8.52747,2345.4,2345.0,0.7503]
[1728003678783,4.26366,2345.4,2345.0,0.7503]
[1728003680204,4.26385,2345.3,2345.0,0.7503]
[1728003680359,4.26366,2345.4,2345.0,0.7503]
[1728003681075,8.52745,2345.4,2345.0,0.7503]
[1728003681967,4.26341,2345.6,2345.2,0.7503]
[1728003682291,4.26306,2345.8,2345.3,0.83556976]
[1728003682679,5.04269,2346.2,2345.3,0.83556976]
[1728003682680,4.26341,2345.6,2345.3,0.7503]
[1728003684401,4.26319,2345.7,2345.3,0.7503]
[1728003685474,4.26304,2345.8,2345.3,0.83556776]
[1728003685683,4.26304,2345.8,2345.3,1.86110707]
[1728003686069,4.26319,2345.7,2345.3,1.86110707]
[1728003686264,4.26319,2345.7,2345.3,1.77583931]
[1728003686507,4.26319,2345.7,2345.3,0.7503]
[1728003688074,8.52608,2345.8,2345.3,0.7503]
[1728003688269,4.26304,2345.8,2345.3,0.8355677]
[1728003688473,4.26316,2345.7,2345.3,0.8355677]
[1728003688994,4.26316,2345.7,2345.3,0.7503]
[1728003689915,4.26304,2345.8,2345.3,0.7503]
[1728003690131,4.26304,2345.8,2345.3,0.83556764]
[1728003690300,4.26304,2345.8,2345.3,0.7503]
[1728003691271,4.26313,2345.7,2345.3,0.7503]
[1728003691733,4.2633,2345.6,2345.3,0.7503]
[1728003692014,4.26395,2345.3,2345.1,0.7503]
[1728003692314,4.26355,2345.5,2345.1,0.7503]
[1728003692988,4.26368,2345.4,2345.1,0.7503]
[1728003693889,4.26355,2345.5,2345.1,0.7503]
[1728003694746,8.52718,2345.5,2345.1,0.7503]
[1728003695229,0.7804,2345.8,2345.1,5.77625359]
[1728003695230,4.26322,2345.7,2345.1,5.77625359]
[1728003695391,4.26322,2345.7,2345.3,0.7637]
[1728003695915,4.26341,2345.6,2345.3,0.7637]
[1728003696121,4.26341,2345.6,2345.1,0.89189537]
[1728003696122,4.26348,2345.5,2345.1,0.89189537]
[1728003696357,4.26348,2345.5,2345.0,1.65559537]
[1728003696358,4.26421,2345.1,2345.0,1.65559537]
[1728003696491,4.26439,2345.0,2344.8,1.65559537]
[1728003696847,4.26439,2345.0,2344.8,0.7637]
[1728003697492,4.26421,2345.1,2344.8,0.7637]
[1728003697693,4.2644,2345.0,2344.8,0.7637]
[1728003697986,4.26421,2345.1,2344.8,0.7637]
[1728003698213,4.26395,2345.3,2344.8,0.7637]
[1728003698214,8.52792,2345.3,2344.8,0.7637]
[1728003698428,4.767338,2345.5,2344.9,4.26441]
[1728003698751,11.57322,2345.7,2345.3,0.7637]
[1728003698752,7.31,2345.7,2345.3,0.7637]
[1728003698894,11.57313,2345.7,2345.3,0.7637]
[1728003699736,8.58931973,2345.7,2345.3,0.7637]
[1728003700047,8.58931973,2345.7,2345.0,1.75454804]
[1728003700048,8.52743,2345.4,2345.0,1.65559537]
[1728003700235,8.52743,2345.4,2345.0,0.7637]
[1728003700529,4.26403,2345.2,2345.0,0.7637]
[1728003700727,4.26403,2345.2,2344.8,0.89189537]
[1728003700728,4.26403,2345.2,2344.8,1.65559537]
[1728003700888,4.26403,2345.2,2344.8,0.7637]
[1728003701090,4.26366,2345.4,2344.8,5.75326924]
[1728003701357,8.52743,2345.4,2344.8,5.83855314]
[1728003701659,4.26366,2345.4,2344.8,6.73044851]
[1728003702127,8.52747,2345.4,2344.8,6.73044851]
[1728003702329,4.26387,2345.3,2344.8,2.46572851]
[1728003702544,4.26387,2345.3,2344.8,1.74088228]
[1728003703034,4.26387,2345.3,2344.8,6.00559228]
[1728003703217,4.26366,2345.4,2344.8,6.00559228]
[1728003703419,0.774,2345.6,2345.0,0.7637]
[1728003703420,4.26342,2345.6,2345.0,0.7637]
[1728003703656,7.31,2345.7,2345.3,0.7637]
[1728003703868,7.31,2345.7,2345.3,5.11267617]
[1728003704670,11.57328,2345.7,2345.3,0.7637]
[1728003704969,12.77519173,2345.7,2345.3,0.7637]
[1728003706470,7.31,2345.7,2345.3,0.7637]
[1728003706776,7.31,2345.7,2345.3,1.65559537]
[1728003707077,7.31,2345.7,2345.3,0.7637]
[1728003707632,7.31,2345.7,2345.3,1.74086311]
[1728003708042,7.31,2345.7,2345.4,0.89189537]
[1728003708258,7.31,2345.7,2345.5,0.7637]
[1728003708647,4.2629,2345.9,2345.5,0.7637]
[1728003708850,4.26293,2345.8,2345.5,0.7637]
[1728003709745,4.26275,2345.9,2345.5,0.7637]
[1728003710082,4.26296,2345.8,2345.5,0.7637]
[1728003713519,4.26279,2345.9,2345.5,0.7637]
[1728003713928,4.2627,2346.0,2345.5,0.7637]
[1728003714225,4.26295,2345.8,2345.5,0.7637]
[1728003714516,4.26295,2345.8,2345.5,1.48844224]
[1728003714878,4.26341,2345.6,2345.4,0.89189537]
[1728003715078,3.0,2346.1,2345.3,0.8057]
[1728003715283,4.26226,2346.2,2345.3,0.8057]
[1728003715284,4.26315,2345.7,2345.3,0.8057]
[1728003717021,4.26311,2345.8,2345.3,0.8057]
[1728003717022,4.2633,2345.6,2345.3,0.8057]
[1728003718695,4.26306,2345.8,2345.3,5.06953]
[1728003718923,4.26306,2345.8,2345.3,5.96142537]
[1728003719125,8.52609,2345.8,2345.3,1.69759537]
[1728003719400,8.52609,2345.8,2345.3,2.60527754]
[1728003719701,4.26303,2345.8,2345.3,2.60527754]
[1728003720033,4.2633,2345.6,2345.3,2.60527754]
[1728003720200,4.26303,2345.8,2345.3,2.60527754]
[1728003720391,8.52612,2345.8,2345.3,2.60527754]
[1728003720733,4.26315,2345.7,2345.3,2.60527754]
[1728003721091,4.26315,2345.7,2345.4,0.81974046]
[1728003721844,4.2627,2346.0,2345.5,0.8057]
[1728003722038,8.5254,2346.0,2345.5,0.8057]
[1728003722188,8.5254,2346.0,2345.5,1.69759537]
[1728003722387,8.5254,2346.0,2345.6,0.81942324]
[1728003722818,4.2627,2346.0,2345.6,0.81942324]
[1728003723522,4.2627,2346.0,2345.7,0.8057]
[1728003724304,4.70823954,2346.2,2345.7,0.8057]
[1728003724510,0.44593954,2346.2,2345.7,0.8057]
[1728003724816,4.26271,2346.0,2345.7,0.8057]
[1728003725414,4.26271,2346.0,2345.7,1.10827024]
[1728003725806,4.26239,2346.1,2345.7,1.10827024]
[1728003727468,4.26231,2346.2,2345.7,5.45663216]
[1728003727777,4.3884,2346.4,2345.8,1.67059537]
[1728003727923,0.1265,2346.4,2345.9,0.86395042]
[1728003728132,0.1265,2346.4,2346.2,0.7787]
[1728003728333,0.1265,2346.4,2346.3,4.26202]
[1728003728533,0.1265,2346.4,2346.3,6.01784443]
[1728003728767,0.1265,2346.4,2346.3,9.4540561]
[1728003728937,0.1265,2346.4,2346.3,9.36882704]
[1728003729140,0.1265,2346.4,2346.3,8.93414325]
[1728003729361,0.1265,2346.4,2346.3,11.01870108]
[1728003730869,0.1265,2346.4,2346.3,10.12527783]
[1728003731037,0.1265,2346.4,2346.3,11.01870108]
[1728003731986,0.1265,2346.4,2346.3,10.12527783]
[1728003732154,0.1265,2346.4,2346.3,11.01712803]
[1728003733239,0.1265,2346.4,2346.3,10.12527783]
[1728003733736,0.1265,2346.4,2346.3,11.44452803]
[1728003734582,0.1265,2346.4,2346.3,11.10267783]
[1728003734746,0.1265,2346.4,2346.3,12.43078487]
[1728003735238,0.1265,2346.4,2346.3,11.99316574]
[1728003736270,0.1265,2346.4,2346.3,11.99274734]
[1728003736483,0.1265,2346.4,2346.3,11.01524926]
[1728003736639,0.1265,2346.4,2346.3,10.12527783]
[1728003739763,0.1265,2346.4,2346.3,10.55267783]
[1728003740100,0.1265,2346.4,2346.3,14.58245157]
[1728003740661,0.1265,2346.4,2346.3,16.022423]
[1728003740910,0.1265,2346.4,2346.3,15.13245157]
[1728003741068,0.1265,2346.4,2346.3,16.46055861]
[1728003741447,0.1265,2346.4,2346.3,27.08700526]
[1728003741605,0.1265,2346.4,2346.3,27.52631061]
[1728003742366,0.1265,2346.4,2346.3,25.37219861]
[1728003742706,0.1265,2346.4,2346.3,25.50357137]
[1728003743707,5.51180813,2347.8,2346.9,3.0]
[1728003743913,0.44579813,2347.8,2347.4,4.2599]
[1728003744092,0.8066,2348.0,2347.6,4.25956]
[1728003744263,0.8066,2348.0,2347.6,8.51911]
[1728003744459,0.8066,2348.0,2347.5,3.0]
[1728003744659,0.8066,2348.0,2347.5,8.789645]
[1728003744859,0.8066,2348.0,2347.6,0.08518227]
[1728003745198,5.06554,2348.0,2347.5,3.0]
[1728003745363,5.06554,2348.0,2347.5,3.08518544]
[1728003745609,5.06554,2348.0,2347.5,7.34502544]
[1728003745767,5.06554,2348.0,2347.5,3.08518544]
[1728003746712,0.8066,2348.0,2347.6,4.25965]
[1728003746876,0.8066,2348.0,2347.7,0.08518014]
[1728003747082,0.8066,2348.0,2347.6,4.25965]
[1728003747299,0.8066,2348.0,2347.6,4.3448318]
[1728003748370,0.8066,2348.0,2347.6,0.0851818]
[1728003748690,0.8066,2348.0,2347.6,0.08518286]
[1728003748892,0.8066,2348.0,2347.6,4.34483286]
[1728003749094,0.8066,2348.0,2347.5,3.81237454]
[1728003749296,5.06564,2348.0,2347.5,3.0]
[1728003750112,4.25915,2347.9,2347.5,3.0]
[1728003750264,5.06564,2348.0,2347.5,3.0]
[1728003750709,0.8066,2347.9,2347.2,4.26029]
[1728003750911,5.191471,2348.0,2347.2,4.26029]
[1728003750912,0.8066,2347.7,2347.3,3.0]
[1728003751615,0.8066,2347.7,2347.4,4.26002]
[1728003751815,0.8066,2347.7,2347.3,3.08519677]
[1728003751987,0.8066,2347.7,2347.3,7.34529677]
[1728003752308,0.8066,2347.7,2347.3,3.0]
[1728003753110,0.8066,2347.7,2347.3,7.2601]
[1728003753615,0.8066,2347.7,2347.3,3.0]
[1728003753913,0.8066,2347.7,2347.3,7.3452768]
[1728003754116,0.8066,2347.7,2347.3,4.13689872]
[1728003754314,5.0662,2347.7,2347.3,3.0]
[1728003754516,5.05758,2347.6,2347.0,15.98136]
[1728003754716,0.7979,2347.6,2347.1,7.34573181]
[1728003755012,0.7979,2347.6,2347.3,4.2602]
[1728003755511,4.25899,2348.0,2347.4,4.25993]
[1728003755512,0.7979,2347.9,2347.4,4.25993]
[1728003756097,5.05704,2347.9,2347.4,4.25993]
[1728003756680,5.05704,2347.9,2347.3,6.23429318]
[1728003758155,7.31,2348.3,2347.8,4.2593]
[1728003758156,0.7979,2348.1,2347.8,4.2593]
[1728003758332,0.7979,2348.1,2347.7,8.51887]
[1728003758663,0.7979,2348.1,2347.8,4.344469]
[1728003758957,0.7979,2348.1,2347.8,0.085179]
[1728003759153,0.7979,2348.1,2347.7,5.07299]
[1728003759450,0.7979,2348.1,2347.8,0.08517727]
[1728003760046,4.25832,2348.4,2347.8,0.08517727]
[1728003760047,4.25832,2348.4,2347.8,4.34434727]
[1728003760273,0.7979,2348.3,2347.9,4.34418242]
[1728003760568,0.7979,2348.5,2348.0,0.89876631]
[1728003760911,5.05596,2348.5,2348.0,0.89876631]
[1728003762727,0.7979,2348.5,2348.0,1.32937763]
[1728003763230,5.05595,2348.5,2348.0,1.32937763]
[1728003763934,5.05595,2348.5,2348.0,0.8136]
[1728003764574,5.05595,2348.5,2347.9,8.51804]
[1728003764779,0.7979,2348.5,2348.0,4.25892]
[1728003765071,4.25823,2348.4,2347.9,4.25901]
[1728003765386,4.25867,2348.2,2347.7,3.0]
[1728003765715,5.05633,2348.3,2347.7,7.25944]
[1728003766375,4.25861,2348.2,2347.7,7.25944]
[1728003766880,4.25861,2348.2,2347.7,7.25938]
[1728003767371,0.7979,2348.3,2347.8,4.25926]
[1728003767573,0.7979,2348.3,2347.8,4.34443576]
[1728003767903,0.7979,2348.3,2347.7,7.25938]
[1728003768103,5.05632,2348.3,2347.8,0.08517577]
[1728003768261,5.05632,2348.3,2347.8,4.34447577]
[1728003768466,0.7979,2348.3,2347.8,4.2593]
[1728003768694,0.7979,2348.3,2347.8,4.34447577]
[1728003768916,0.7979,2348.3,2347.9,4.25911]
[1728003769064,0.7979,2348.3,2348.1,4.25872]
[1728003769411,5.07898,2348.7,2348.2,4.25858]
[1728003769904,5.07898,2348.7,2348.1,4.25872]
[1728003770058,6.012631,2348.7,2348.1,4.25872]
[1728003770263,6.012631,2348.7,2348.1,8.51733]
[1728003770562,1.754951,2348.7,2348.1,4.25861]
[1728003770878,4.25785,2348.6,2348.1,4.25861]
[1728003771263,0.8213,2348.7,2348.2,0.08516456]
[1728003771508,0.8213,2348.7,2348.3,5.01419]
[1728003772606,0.8213,2348.7,2348.3,0.7559]
[1728003773290,0.8213,2348.7,2348.2,4.34364699]
[1728003773490,0.8213,2348.7,2348.3,1.02465487]
[1728003773698,0.8213,2348.7,2348.2,4.34364699]
[1728003774219,0.8213,2348.7,2348.3,4.25837]
[1728003774418,0.8213,2348.7,2348.4,0.08515579]
[1728003775341,0.8213,2348.7,2348.2,3.0]
[1728003775819,4.25794,2348.6,2348.2,3.0]
[1728003776027,0.8213,2348.7,2348.2,4.57686348]
[1728003776234,0.8213,2348.7,2348.2,8.75018188]
[1728003777113,5.07899,2348.7,2348.2,8.75018188]
[1728003777313,5.07899,2348.7,2348.3,0.08515579]
[1728003777538,4.25789,2348.6,2348.2,4.49170188]
[1728003777708,4.25818,2348.5,2348.1,3.88834172]
[1728003777923,4.25824,2348.4,2348.0,0.88834172]
[1728003778128,4.25824,2348.4,2347.9,12.60734172]
[1728003778328,8.51661,2348.4,2347.9,12.60734172]
[1728003778539,4.25824,2348.4,2347.9,8.34834172]
[1728003778711,4.25858,2348.2,2347.8,2.61284089]
[1728003779119,0.8213,2348.3,2347.8,6.87213089]
[1728003779316,5.0797,2348.3,2347.8,6.87213089]
[1728003779524,5.0797,2348.3,2347.8,5.98378917]
[1728003779722,5.0797,2348.3,2347.8,2.61284089]
[1728003779922,5.0797,2348.3,2347.8,6.95731772]
[1728003780159,5.0797,2348.3,2347.8,6.95914465]
[1728003780562,5.0797,2348.3,2347.8,2.61466782]
[1728003780937,5.0797,2348.3,2347.8,6.87387782]
[1728003781140,5.0797,2348.3,2347.9,1.4110613]
[1728003781764,4.25859,2348.2,2347.9,1.4110613]
[1728003781938,4.25876,2348.1,2347.7,3.89016865]
[1728003782134,5.0797,2348.3,2347.7,8.19100539]
[1728003782339,4.25869,2348.2,2347.7,8.14952865]
[1728003782950,4.20869,2348.2,2347.7,8.14952865]
[1728003783239,5.0797,2348.3,2347.7,14.64766881]
[1728003783665,5.0797,2348.3,2347.7,10.38830881]
[1728003783868,9.33819,2348.3,2347.7,10.38830881]
[1728003784174,5.0797,2348.3,2347.7,14.64767881]
[1728003784476,5.0797,2348.3,2347.8,4.25916]
[1728003784648,5.0797,2348.3,2347.8,5.90017218]
[1728003785446,5.0797,2348.3,2347.9,0.8265]
[1728003785962,4.25862,2348.2,2347.8,4.64101218]
[1728003786140,5.0797,2348.3,2347.8,4.64101218]
[1728003786970,9.33826,2348.3,2347.8,4.64101218]
[1728003788215,5.0797,2348.3,2347.8,4.64101218]
[1728003788569,5.0797,2348.3,2347.8,8.90031218]
[1728003790223,5.0797,2348.3,2347.9,1.48763408]
[1728003790404,0.8213,2348.3,2347.9,5.74665408]
[1728003790587,0.8213,2348.3,2347.9,1.48763408]
[1728003793007,5.07971,2348.3,2347.9,1.48763408]
[1728003793179,0.8213,2348.3,2347.9,1.48763408]
[1728003793372,0.8213,2348.3,2347.9,5.74672408]
[1728003793770,0.8213,2348.3,2347.9,1.48763408]
[1728003793967,5.07982,2348.3,2347.8,7.2592]
[1728003794167,5.07982,2348.3,2347.8,7.34437629]
[1728003794371,0.8213,2348.3,2347.9,4.25908]
[1728003794584,5.07976,2348.3,2347.8,7.2592]
[1728003794813,5.07976,2348.3,2347.8,7.34437624]
[1728003794982,5.07976,2348.3,2347.8,8.85269903]
[1728003795189,5.07976,2348.3,2347.8,8.76752279]
[1728003795588,0.8213,2348.3,2347.8,13.02668279]
[1728003795971,0.8213,2348.3,2347.9,4.25911]
[1728003796178,0.8213,2348.3,2347.9,5.77617614]
[1728003796387,4.25831,2348.4,2348.0,0.8265]
[1728003796992,4.25795,2348.6,2348.1,4.34392526]
[1728003797790,4.25795,2348.6,2348.0,5.0854]
[1728003797996,4.25806,2348.5,2348.0,5.0854]
[1728003798203,4.25806,2348.5,2348.0,6.60332048]
[1728003800793,4.25822,2348.4,2348.0,2.34442048]
[1728003801132,0.761,2348.3,2347.8,4.71666865]
[1728003801291,5.01941,2348.3,2347.9,0.89016865]
[1728003801503,0.761,2348.3,2347.9,0.89016865]
[1728003802030,5.01896,2348.6,2348.0,0.08517798]
[1728003802317,5.01896,2348.6,2348.1,5.08513]
[1728003802617,5.01896,2348.6,2348.1,9.34379]
[1728003802980,5.01896,2348.6,2348.1,5.08513]
[1728003803179,5.01896,2348.6,2348.1,6.49090945]
[1728003804734,5.01896,2348.6,2348.1,6.40574385]
[1728003805196,5.01896,2348.6,2348.1,7.38107732]
[1728003805773,9.27693,2348.6,2348.1,7.38107732]
[1728003806176,4.25803,2348.5,2348.1,3.0372825]
[1728003806829,9.27691,2348.6,2348.1,3.12244828]
[1728003807131,4.25807,2348.5,2348.2,0.87165313]
[1728003807327,5.01895,2348.6,2348.1,3.0372825]
[1728003807496,9.27691,2348.6,2348.1,3.0372825]
[1728003807679,5.01895,2348.6,2348.1,3.12244821]
[1728003808108,4.25795,2348.6,2348.2,0.89016865]
[1728003808319,4.25795,2348.6,2348.2,1.76183077]
[1728003808624,4.25764,2348.8,2348.3,5.59745564]
[1728003808787,0.44586461,2348.9,2348.4,3.8265]
[1728003808996,0.44586461,2348.9,2348.6,0.8265]
[1728003809307,9.27481,2349.2,2348.6,1.80181551]
[1728003809630,9.72048641,2349.2,2348.7,0.73949285]
[1728003809820,4.25697,2349.1,2348.7,0.73949285]
[1728003810417,8.51379,2349.2,2348.7,0.73949285]
[1728003810725,4.25695,2349.1,2348.7,0.73949285]
[1728003810878,5.01795,2349.1,2348.6,0.89016865]
[1728003811078,5.01795,2349.1,2348.5,1.33525298]
[1728003811079,4.2575,2348.8,2348.5,0.89016865]
[1728003812193,4.25732,2348.9,2348.5,0.89016865]
[1728003812393,4.25732,2348.9,2348.6,0.8265]
[1728003812595,8.51477,2348.9,2348.6,0.8265]
[1728003812981,4.25764,2348.8,2348.5,0.89016865]
[1728003813285,4.25769,2348.7,2348.4,1.71666865]
[1728003813480,4.25796,2348.6,2348.4,0.89016865]
[1728003813708,4.25796,2348.6,2348.3,0.89016865]
[1728003813911,5.01869,2348.7,2348.4,0.89016865]
[1728003814413,5.01869,2348.7,2348.3,0.89016865]
[1728003814635,4.25786,2348.6,2348.3,0.89016865]
[1728003815178,5.01869,2348.7,2348.3,0.89016865]
[1728003815423,4.25795,2348.6,2348.3,0.89016865]
[1728003815718,9.27648,2348.7,2348.3,0.89016865]
[1728003815905,5.01869,2348.7,2348.3,0.89016865]
[1728003816614,4.25754,2348.8,2348.3,6.47862184]
[1728003816856,4.25754,2348.8,2348.3,2.13515954]
[1728003817132,4.25754,2348.8,2348.3,0.89016865]
[1728003817333,4.25797,2348.6,2348.3,0.89016865]
[1728003817545,4.25805,2348.5,2348.2,1.64826865]
[1728003817832,9.34518,2348.6,2348.2,1.64826865]
[1728003819530,4.25804,2348.5,2348.1,0.89016865]
[1728003819731,0.8292,2348.2,2348.1,0.89016865]
[1728003819947,0.8292,2348.2,2348.0,0.89016865]
[1728003820239,0.8292,2348.2,2347.9,3.89016865]
[1728003820599,4.25814,2348.5,2348.0,5.14908865]
[1728003820790,0.8292,2348.6,2348.1,0.7581]
[1728003820791,5.0871,2348.6,2348.1,0.7581]
[1728003821338,5.0871,2348.6,2348.1,5.01682]
[1728003822406,4.2579,2348.6,2348.1,5.01682]
[1728003822606,4.2579,2348.6,2348.1,5.90698865]
[1728003823620,8.51555,2348.7,2348.1,5.90685865]
[1728003823850,4.25777,2348.7,2348.2,0.4274]
[1728003824152,5.192209,2348.7,2348.3,0.7581]
[1728003824358,9.450029,2348.7,2348.3,0.7581]
[1728003824560,5.192209,2348.7,2348.3,0.7581]
[1728003824763,4.25787,2348.6,2348.3,0.7581]
[1728003826476,4.25807,2348.5,2348.3,0.7581]
[1728003826833,4.25821,2348.4,2348.3,0.7581]
[1728003827438,4.25821,2348.4,2348.1,0.7581]
[1728003828661,5.07567,2348.5,2348.1,0.7581]
[1728003829032,9.33385,2348.5,2348.1,0.7581]
[1728003829228,5.07567,2348.5,2348.1,0.7581]
[1728003829528,9.33382,2348.5,2348.1,0.7581]
[1728003830335,5.07567,2348.5,2348.1,0.7581]
[1728003831072,5.07567,2348.5,2348.0,1.31756865]
[1728003831073,4.25842,2348.3,2348.0,0.89016865]
[1728003832392,5.07636,2348.1,2348.0,0.89016865]
[1728003832595,5.07636,2348.1,2347.7,0.89016865]
[1728003832596,0.8176,2348.1,2347.7,0.89016865]
[1728003833114,0.8176,2348.1,2347.6,5.90992865]
[1728003833259,5.0764,2348.1,2347.6,7.23847154]
[1728003833961,5.0764,2348.1,2347.5,1.33525298]
[1728003833962,0.8176,2348.0,2347.5,0.89016865]
[1728003834168,5.07656,2348.0,2347.5,5.14999865]
[1728003834578,4.25913,2347.9,2347.5,0.89016865]
[1728003835399,0.8176,2348.0,2347.5,5.14999865]
[1728003836303,5.07664,2348.0,2347.5,0.89016865]
[1728003836614,4.25913,2347.9,2347.5,0.89016865]
[1728003836797,4.25913,2347.9,2347.4,0.89016865]
[1728003837313,8.51838,2347.9,2347.4,5.15017865]
[1728003837512,4.25913,2347.9,2347.4,5.15017865]
[1728003837808,4.25913,2347.9,2347.4,6.09550554]
[1728003838923,8.51837,2347.9,2347.4,6.09550554]
[1728003839078,4.25913,2347.9,2347.4,0.89016865]
[1728003839449,4.25931,2347.8,2347.3,2.07766865]
[1728003839607,4.25913,2347.9,2347.3,6.33775865]
[1728003840308,4.25913,2347.9,2347.4,4.25997]
[1728003840730,4.25913,2347.9,2347.5,0.7601]
[1728003841450,4.25887,2348.1,2347.5,5.01994]
[1728003841743,4.25887,2348.1,2347.6,5.10484346]
[1728003841948,4.25852,2348.3,2347.7,5.01957]
[1728003842244,1.2634954,2348.4,2347.9,5.01906]
[1728003842245,0.4458954,2348.4,2347.9,5.01906]
[1728003842453,0.4458954,2348.4,2348.1,0.7601]
[1728003842668,4.25797,2348.6,2348.3,0.7601]
[1728003842945,4.25753,2348.8,2348.3,0.84526967]
[1728003843163,4.25753,2348.8,2348.3,2.7741838]
[1728003843506,4.25777,2348.7,2348.3,2.26161413]
[1728003843701,8.1276,2349.0,2348.2,0.89016865]
[1728003843702,4.25813,2348.5,2348.2,0.89016865]
[1728003843908,4.25847,2348.3,2348.1,0.7619]
[1728003844208,5.04794,2348.1,2347.8,0.89016865]
[1728003844556,5.04794,2348.1,2347.6,2.09715298]
[1728003844557,9.30683,2348.1,2347.7,0.89016865]
[1728003844708,4.25891,2348.1,2347.7,0.89016865]
[1728003844908,4.25891,2348.1,2347.6,3.25688129]
[1728003844909,8.51781,2348.1,2347.6,2.81179696]
[1728003845250,4.2589,2348.1,2347.6,2.81179696]
[1728003845422,4.2589,2348.1,2347.7,1.00612224]
[1728003845624,4.2589,2348.1,2347.7,1.43352224]
[1728003845820,4.25851,2348.3,2347.7,1.51870449]
[1728003846044,7.31,2348.6,2348.0,4.25892]
[1728003846245,8.96071733,2348.9,2348.2,5.02044]
[1728003846419,4.2575,2348.8,2348.3,0.08515733]
[1728003846623,4.70322733,2348.9,2348.2,5.44777]
[1728003846624,4.25768,2348.7,2348.2,5.44777]
[1728003850386,4.25768,2348.7,2348.3,0.08515902]
[1728003850595,4.25768,2348.7,2348.3,0.64230977]
[1728003851574,4.25742,2348.9,2348.4,0.7619]
[1728003852588,8.51483,2348.9,2348.4,0.7619]
[1728003852750,4.25705,2349.1,2348.5,0.70267226]
[1728003852957,4.25705,2349.1,2348.6,1.1893]
[1728003853856,9.74816668,2349.3,2348.6,1.1893]
[1728003854076,5.49141668,2349.3,2348.7,5.46567764]
[1728003854388,5.49141668,2349.3,2348.7,5.46567659]
[1728003854565,5.49141668,2349.3,2348.7,5.38053444]
[1728003855894,4.70241668,2349.3,2348.8,0.7619]
[1728003856066,8.95916668,2349.3,2348.8,1.1893]
[1728003856396,4.25683,2349.2,2348.9,0.62275766]
[1728003856555,4.25683,2349.2,2348.8,1.1893]
[1728003856745,4.70241668,2349.3,2348.8,1.1893]
[1728003857506,4.25678,2349.2,2348.8,1.1893]
[1728003858563,4.70241668,2349.3,2348.9,0.7619]
[1728003859096,4.70241668,2349.3,2348.9,0.84703462]
[1728003859097,4.25667,2349.3,2348.9,0.84703462]
[1728003859305,4.25667,2349.3,2349.0,0.85319046]
[1728003859501,8.51273,2349.5,2348.9,0.7619]
[1728003859684,4.25634,2349.5,2349.0,0.84703312]
[1728003860187,8.51268,2349.5,2349.0,0.84703312]
[1728003860395,4.25634,2349.5,2349.0,0.84703312]
[1728003860601,8.5127,2349.5,2349.1,0.51043131]
[1728003860908,4.25634,2349.5,2349.2,0.7619]
[1728003861202,0.789,2349.8,2349.2,0.7619]
[1728003861407,4.25658,2349.3,2349.2,0.7619]
[1728003861567,4.25676,2349.2,2348.9,0.7619]
[1728003861763,4.25713,2349.0,2348.9,0.7619]
[1728003862005,4.25699,2349.1,2348.9,0.7619]
[1728003863138,4.25713,2349.0,2348.9,0.7619]
[1728003863514,4.25713,2349.0,2348.7,0.7619]
[1728003865137,4.25737,2348.9,2348.7,0.7619]
[1728003865314,8.51443,2349.0,2348.7,0.7619]
[1728003865738,8.5138,2349.2,2348.7,0.7619]
[1728003865944,4.25706,2349.1,2348.7,0.7619]
[1728003866342,4.25714,2349.0,2348.7,0.7619]
[1728003866675,4.25744,2348.9,2348.5,1.1893]
[1728003866962,9.3034,2349.0,2348.5,1.1893]
[1728003867161,9.3034,2349.0,2348.5,2.54889287]
[1728003867519,5.04614,2349.0,2348.5,2.54889287]
[1728003867720,4.25714,2349.0,2348.5,6.80691287]
[1728003869962,8.51438,2349.0,2348.5,6.80691287]
[1728003870124,4.25714,2349.0,2348.5,5.44732]
[1728003870327,4.25741,2348.9,2348.5,1.1893]
[1728003870728,4.25714,2349.0,2348.5,1.1893]
[1728003873137,4.25752,2348.8,2348.5,0.7619]
[1728003873340,0.425752,2348.7,2348.3,1.65206865]
[1728003873585,4.25768,2348.7,2348.3,1.65206865]
[1728003873886,5.04652,2348.8,2348.3,5.91045865]
[1728003874376,5.07384,2349.0,2348.5,0.7569]
[1728003874538,8.51448,2349.0,2348.5,0.7569]
[1728003874742,9.447588,2349.0,2348.5,0.7569]
[1728003875243,4.25735,2348.9,2348.5,0.7569]
[1728003876175,4.25724,2349.0,2348.5,0.7569]
[1728003876891,4.25734,2348.9,2348.5,0.7569]
[1728003879058,8.51452,2349.0,2348.5,0.84205468]
[1728003879259,4.25724,2349.0,2348.5,0.7569]
[1728003879475,8.51448,2349.0,2348.5,0.7569]
[1728003880370,4.25735,2348.9,2348.5,0.7569]
[1728003883960,4.25724,2349.0,2348.5,0.84205069]
[1728003884288,4.25731,2348.9,2348.5,0.7569]
[1728003885299,4.2575,2348.8,2348.5,0.7569]
[1728003885448,4.25777,2348.7,2348.5,0.7569]
[1728003885948,8.5156,2348.7,2348.5,0.7569]
[1728003886147,8.51556,2348.7,2348.5,0.7569]
[1728003886969,4.25785,2348.6,2348.5,0.7569]
[1728003890969,4.25777,2348.7,2348.5,0.7569]
[1728003891883,4.25703,2349.1,2348.6,1.66076865]
[1728003892087,4.25732,2348.9,2348.7,0.59186986]
[1728003892401,4.25732,2348.9,2348.6,0.7706]